fUSD/lending_fUSD_20241119
["ID","MTS","AMOUNT","RATE_DAILY","PERIOD"]
[342583918,1731982243519,-500.0,9.999e-05,2]
[342583919,1731982243529,-506.56233781,9.999e-05,2]
[342583920,1731982243538,-500.0,9.999e-05,2]
[342583921,1731982243547,-500.0,9.999e-05,2]
[342583922,1731982243556,-500.0,9.999e-05,2]
[342583923,1731982243566,-500.0,9.999e-05,2]
[342583924,1731982243577,-500.0,9.999e-05,2]
[342583925,1731982243586,-526.96,9.999e-05,2]
[342583926,1731982243595,-500.0,9.999e-05,2]
[342583927,1731982243605,-500.0,9.999e-05,2]
[342583928,1731982243615,-500.0,9.999e-05,2]
[342583929,1731982243625,-500.0,9.999e-05,2]
[342583930,1731982243635,-504.56094817,9.999e-05,2]
[342583931,1731982243644,-495.0,9.999e-05,2]
[342583932,1731982243654,-616.5098145,9.999e-05,2]
[342583933,1731982243664,-502.21885828,9.999e-05,2]
[342583934,1731982243673,-500.0,9.999e-05,2]
[342583935,1731982243682,-500.0,9.999e-05,2]
[342583936,1731982243691,-500.0,9.999e-05,2]
[342583937,1731982243701,-500.0,9.999e-05,2]
[342583938,1731982243711,-500.0,9.999e-05,2]
[342583939,1731982243720,-500.0,9.999e-05,2]
[342583940,1731982243730,-500.0,9.999e-05,2]
[342583941,1731982243740,-358.4,9.999e-05,2]
[342583942,1731982243751,-500.0,9.999e-05,2]
[342583943,1731982243760,-189.97121806,9.999e-05,2]
[342583944,1731982243770,-500.99139272,9.999e-05,2]
[342583945,1731982243780,-508.77563059,9.999e-05,2]
[342583946,1731982243790,-567.13482885,9.999e-05,2]
[342583947,1731982243800,-500.0,9.999e-05,2]
[342583948,1731982243810,-500.0,9.999e-05,2]
[342583949,1731982243822,-500.0,9.999e-05,2]
[342583950,1731982243831,-500.0,9.999e-05,2]
[342583951,1731982243842,-500.0,9.999e-05,2]
[342583952,1731982243852,-500.0,9.999e-05,2]
[342583953,1731982243863,-500.0,9.999e-05,2]
[342583954,1731982243873,-500.0,9.999e-05,2]
[342583955,1731982243883,-500.0,9.999e-05,2]
[342583956,1731982243892,-500.0,9.999e-05,2]
[342583957,1731982243904,-500.0,9.999e-05,2]
[342583958,1731982243914,-500.0,9.999e-05,2]
[342583959,1731982243924,-500.0,9.999e-05,2]
[342583960,1731982243933,-500.0,9.999e-05,2]
[342583961,1731982243943,-500.0,9.999e-05,2]
[342583962,1731982243952,-425.04,9.999e-05,2]
[342583963,1731982243962,-504.16341816,9.999e-05,2]
[342583964,1731982243971,-503.66302116,9.999e-05,2]
[342583965,1731982243982,-500.0,9.999e-05,2]
[342583966,1731982243992,-500.0,9.999e-05,2]
[342583967,1731982244003,-500.0,9.999e-05,2]
[342583968,1731982244012,-500.0,9.999e-05,2]
[342583969,1731982244021,-342.96,9.999e-05,2]
[342583970,1731982244030,-501.69860758,9.999e-05,2]
[342583971,1731982244040,-502.13957996,9.999e-05,2]
[342583972,1731982244049,-500.0,9.999e-05,2]
[342583973,1731982244060,-500.0,9.999e-05,2]
[342583974,1731982244069,-500.0,9.999e-05,2]
[342583975,1731982244078,-500.0,9.999e-05,2]
[342583976,1731982244088,-500.0,9.999e-05,2]
[342583977,1731982244097,-500.0,9.999e-05,2]
[342583978,1731982244108,-500.0,9.999e-05,2]
[342583979,1731982244117,-500.0,9.999e-05,2]
[342583980,1731982244127,-505.34433718,9.999e-05,2]
[342583981,1731982244136,-500.0,9.999e-05,2]
[342583982,1731982244145,-500.0,9.999e-05,2]
[342583983,1731982244156,-285.93598836,9.999e-05,2]
[342583984,1731982244165,-500.0,9.999e-05,2]
[342583985,1731982244174,-500.0,9.999e-05,2]
[342583986,1731982244183,-500.0,9.999e-05,2]
[342583987,1731982244193,-500.0,9.999e-05,2]
[342583988,1731982244202,-500.0,9.999e-05,2]
[342583989,1731982244212,-500.0,9.999e-05,2]
[342583990,1731982244221,-500.0,9.999e-05,2]
[342583991,1731982244231,-180.2,9.999e-05,2]
[342583992,1731982244240,-500.0,9.999e-05,2]
[342583993,1731982244250,-500.0,9.999e-05,2]
[342583994,1731982244259,-500.0,9.999e-05,2]
[342583995,1731982244268,-622.49158291,9.999e-05,2]
[342583996,1731982244277,-500.0,9.999e-05,2]
[342583997,1731982244287,-563.38054356,9.999e-05,2]
[342583998,1731982244296,-500.0,9.999e-05,2]
[342583999,1731982244305,-502.26362877,9.999e-05,2]
[342584000,1731982244315,-574.86092496,9.999e-05,2]
[342584001,1731982244323,-496.73613108,9.999e-05,2]
[342584002,1731982244333,-500.77431924,9.999e-05,2]
[342584003,1731982244342,-500.0,9.999e-05,2]
[342584004,1731982244352,-500.0,9.999e-05,2]
[342584005,1731982244361,-500.0,9.999e-05,2]
[342584006,1731982244370,-500.0,9.999e-05,2]
[342584007,1731982244379,-500.0,9.999e-05,2]
[342584008,1731982244388,-502.84939785,9.999e-05,2]
[342584009,1731982244397,-500.0,9.999e-05,2]
[342584010,1731982244407,-500.0,9.999e-05,2]
[342584011,1731982244416,-500.0,9.999e-05,2]
[342584012,1731982244425,-492.90984868,9.999e-05,2]
[342584013,1731982244434,-234.01,9.999e-05,2]
[342584014,1731982244443,-405.85,9.999e-05,2]
[342584015,1731982244452,-500.0,9.999e-05,2]
[342584016,1731982244462,-541.84239003,9.999e-05,2]
[342584017,1731982244471,-548.78504325,9.999e-05,2]
[342584018,1731982244479,-500.0,9.999e-05,2]
[342584019,1731982244488,-500.0,9.999e-05,2]
[342584020,1731982244497,-500.0,9.999e-05,2]
[342584021,1731982244506,-500.0,9.999e-05,2]
[342584022,1731982244515,-500.0,9.999e-05,2]
[342584023,1731982244524,-587.96,9.999e-05,2]
[342584024,1731982244533,-500.0,9.999e-05,2]
[342584025,1731982244542,-500.0,9.999e-05,2]
[342584026,1731982244551,-500.71198405,9.999e-05,2]
[342584027,1731982244560,-500.0,9.999e-05,2]
[342584028,1731982244569,-500.0,9.999e-05,2]
[342584029,1731982244578,-500.0,9.999e-05,2]
[342584030,1731982244587,-500.0,9.999e-05,2]
[342584031,1731982244596,-500.0,9.999e-05,2]
[342584032,1731982244604,-532.513998,9.999e-05,2]
[342584033,1731982244613,-500.0,9.999e-05,2]
[342584034,1731982244622,-500.0,9.999e-05,2]
[342584035,1731982244631,-500.0,9.999e-05,2]
[342584036,1731982244640,-500.0,9.999e-05,2]
[342584037,1731982244649,-500.0,9.999e-05,2]
[342584038,1731982244660,-427.41,9.999e-05,2]
[342584039,1731982244669,-94503.62764479,0.0001,2]
[342584040,1731982244975,-2286.79370162,0.0001,2]
[342584041,1731982244988,-64510.93353625,0.0001,2]
[342584042,1731982245250,-500.0,9.999e-05,2]
[342584043,1731982245259,-363.45376281,9.999e-05,2]
[342584044,1731982245270,-136.54623719,9.999e-05,2]
[342584045,1731982245279,-500.0,9.999e-05,2]
[342584046,1731982245288,-500.0,9.999e-05,2]
[342584047,1731982245297,-500.0,9.999e-05,2]
[342584048,1731982245306,-500.0,9.999e-05,2]
[342584049,1731982245315,-500.0,9.999e-05,2]
[342584050,1731982245323,-226.12,9.999e-05,2]
[342584051,1731982245333,-501.84792606,9.999e-05,2]
[342584052,1731982245342,-597.45888307,0.0001,2]
[342584053,1731982245361,-4588.17055245,0.0001,2]
[342584054,1731982245372,-2741.6252597,0.0001,2]
[342584055,1731982245393,-65817.8146513,0.0001,2]
[342584056,1731982245403,-6143.61316601,0.0001,2]
[342584057,1731982245414,-155.78764475,0.0001,2]
[342584058,1731982245423,-155.78764471,0.0001,2]
[342584059,1731982245433,-155.78764471,0.0001,2]
[342584060,1731982245442,-155.78764471,0.0001,2]
[342584063,1731982245451,-155.78764471,0.0001,2]
[342584065,1731982245460,-155.78764471,0.0001,2]
[342584066,1731982245469,-155.78764471,0.0001,2]
[342584067,1731982245479,-155.78764471,0.0001,2]
[342584069,1731982245488,-6926261.463611,0.0001,2]
[342584071,1731982245499,-5940.34185658,0.0001,2]
[342584073,1731982245510,-565.618,0.0001,2]
[342584075,1731982245521,-2937.7871747,0.0001,2]
[342584079,1731982245614,-500.0,9.998e-05,2]
[342584080,1731982245623,-292.07,9.998e-05,2]
[342584081,1731982245631,-367.89120324,9.999e-05,2]
[342584082,1731982245647,-137.26156867,9.999e-05,2]
[342584083,1731982245657,-163.54472514,0.0001,2]
[342584084,1731982245668,-860.80973876,0.0001,2]
[342584085,1731982245679,-346.32366787,0.0001,2]
[342584086,1731982245689,-972.95067733,0.0001,2]
[342584087,1731982245700,-592.3,0.0001,2]
[342584088,1731982245919,-500.0,9.998e-05,2]
[342584089,1731982245928,-500.0,9.999e-05,2]
[342584090,1731982245937,-479.66605396,9.999e-05,2]
[342584091,1731982245946,-10463.11794508,0.0001,2]
[342584092,1731982245957,-2985.44310836,0.0001,2]
[342584093,1731982245968,-5919.69333154,0.0001,2]
[342584094,1731982245979,-9700.91609594,0.0001,2]
[342584095,1731982245990,-9080.17317726,0.0001,2]
[342584096,1731982246001,-225458.36876734,0.0001,2]
[342584097,1731982246012,-15650.44116671,0.0001,2]
[342584098,1731982246129,-952662.27813313,0.0001,2]
[342584099,1731982246141,-3902.9747869,0.0001,2]
[342584100,1731982246153,-23889.32589352,0.0001,2]
[342584101,1731982246165,-311.38426096,0.0001,2]
[342584102,1731982246176,-45150.00000001,0.0001,2]
[342584103,1731982246187,-3135.3,0.0001,2]
[342584104,1731982246198,-8797.2761356,0.0001,2]
[342584105,1731982246262,-500.0,9.998e-05,2]
[342584106,1731982246272,-51.61,9.998e-05,2]
[342584107,1731982246285,-117.21,9.998e-05,2]
[342584108,1731982246296,-5416.0899975,0.0001,2]
[342584109,1731982246308,-4580.5200791,0.0001,2]
[342584110,1731982246409,-156865.15126199,0.0001,2]
[342584111,1731982246421,-1273.63639966,0.0001,2]
[342584112,1731982405847,936.6492229,0.00023,120]
[342584113,1731982461423,249.89,8.219e-05,2]
[342584115,1731983107363,237.39,8.219e-05,2]
[342584119,1731983183406,15000.0,8e-05,2]
[342584122,1731983284967,6900.0,8e-05,2]
[342584123,1731983300237,585.25,8.495e-05,2]
[342584145,1731983408868,300.0,8.384e-05,2]
[342584146,1731983415123,23900.0,8.424e-05,2]
[342584156,1731983431849,-308.21,8.543e-05,2]
[342584157,1731983431862,-6603.73,8.543e-05,2]
[342584158,1731983431872,-300.0,8.553e-05,2]
[342584159,1731983431882,-1000.0,8.554e-05,2]
[342584160,1731983431893,-3673.26613912,8.554e-05,2]
[342584161,1731983431902,-250.0,8.668e-05,2]
[342584162,1731983431913,-2163.38,8.714e-05,2]
[342584163,1731983431922,-150.0,8.914e-05,2]
[342584164,1731983431932,-414.75,8.915e-05,2]
[342584165,1731983431941,-162.43,8.955e-05,2]
[342584166,1731983431950,-1732.54082972,9e-05,2]
[342584167,1731983431960,-150.0,9e-05,2]
[342584168,1731983431972,-2773.6154304,9e-05,2]
[342584169,1731983431982,-48496.48610044,9.026e-05,2]
[342584170,1731983431991,-6687.5809747,9.129e-05,2]
[342584171,1731983432000,-3725.58,9.249e-05,2]
[342584172,1731983432010,-167.0,9.274e-05,2]
[342584173,1731983432020,-180.44,9.328e-05,2]
[342584174,1731983432031,-764.05,9.341e-05,2]
[342584175,1731983432039,-764.05,9.341e-05,2]
[342584176,1731983432050,-764.05,9.341e-05,2]
[342584177,1731983432061,-764.05,9.341e-05,2]
[342584178,1731983432071,-727.58,9.37e-05,2]
[342584179,1731983432081,-362.82,9.37e-05,2]
[342584180,1731983432091,-233.64,9.37e-05,2]
[342584181,1731983432100,-150.0,9.37e-05,2]
[342584182,1731983432110,-150.0,9.37e-05,2]
[342584183,1731983432121,-150.0,9.37e-05,2]
[342584184,1731983432130,-150.0,9.37e-05,2]
[342584185,1731983432140,-150.0,9.37e-05,2]
[342584186,1731983432149,-150.0,9.37e-05,2]
[342584187,1731983432158,-150.56,9.378e-05,2]
[342584188,1731983432167,-150.0,9.389e-05,2]
[342584189,1731983432177,-420.0,9.408e-05,2]
[342584190,1731983432188,-868.22,9.478e-05,2]
[342584191,1731983432197,-764.05,9.541e-05,2]
[342584192,1731983432206,-764.05,9.541e-05,2]
[342584193,1731983432218,-764.05,9.541e-05,2]
[342584194,1731983432227,-764.05,9.541e-05,2]
[342584195,1731983432238,-585.25,9.557e-05,2]
[342584196,1731983432254,-1000.0,9.6e-05,2]
[342584197,1731983432264,-200.0,9.6e-05,2]
[342584198,1731983432274,-200.39400011,9.6e-05,2]
[342584199,1731983432283,-1000.0,9.623e-05,2]
[342584200,1731983432292,-150.0,9.678e-05,2]
[342584201,1731983432301,-150.0,9.678e-05,2]
[342584202,1731983432311,-150.0,9.678e-05,2]
[342584203,1731983432320,-150.0,9.678e-05,2]
[342584204,1731983432329,-747.7264,9.699e-05,2]
[342584205,1731983432339,-189227.9413,9.7e-05,2]
[342584206,1731983432348,-12740.8498,9.799e-05,2]
[342584207,1731983432357,-6489.7748,9.799e-05,2]
[342584208,1731983432366,-18957.0,9.799e-05,2]
[342584209,1731983432375,-638.57716736,9.8e-05,2]
[342584210,1731983432384,-15328.92222903,9.8e-05,2]
[342584211,1731983432394,-1000.0,9.8e-05,2]
[342584212,1731983432403,-255.0,9.806e-05,2]
[342584213,1731983432412,-151.0,9.842e-05,2]
[342584214,1731983432422,-500.0,9.863e-05,2]
[342584215,1731983432431,-504.31893349,9.863e-05,2]
[342584216,1731983432440,-500.0,9.863e-05,2]
[342584217,1731983432449,-500.0,9.863e-05,2]
[342584218,1731983432458,-500.0,9.863e-05,2]
[342584219,1731983432469,-500.0,9.863e-05,2]
[342584220,1731983432478,-500.0,9.863e-05,2]
[342584221,1731983432487,-500.0,9.863e-05,2]
[342584222,1731983432496,-500.0,9.863e-05,2]
[342584223,1731983432505,-501.87317717,9.863e-05,2]
[342584224,1731983432514,-500.0,9.863e-05,2]
[342584225,1731983432523,-500.0,9.863e-05,2]
[342584226,1731983432532,-500.0,9.863e-05,2]
[342584227,1731983432542,-500.0,9.863e-05,2]
[342584228,1731983432551,-500.0,9.863e-05,2]
[342584229,1731983432560,-500.0,9.863e-05,2]
[342584230,1731983432569,-500.0,9.863e-05,2]
[342584231,1731983432578,-500.0,9.863e-05,2]
[342584232,1731983432588,-500.0,9.863e-05,2]
[342584233,1731983432597,-500.0,9.863e-05,2]
[342584234,1731983432606,-500.0,9.863e-05,2]
[342584235,1731983432615,-500.0,9.863e-05,2]
[342584236,1731983432625,-500.0,9.863e-05,2]
[342584237,1731983432634,-500.0,9.863e-05,2]
[342584238,1731983432643,-500.0,9.863e-05,2]
[342584239,1731983432652,-500.0,9.863e-05,2]
[342584240,1731983432661,-500.0,9.863e-05,2]
[342584241,1731983432669,-500.0,9.863e-05,2]
[342584242,1731983432678,-500.0,9.863e-05,2]
[342584243,1731983432687,-500.0,9.863e-05,2]
[342584244,1731983432696,-500.0,9.863e-05,2]
[342584245,1731983432705,-500.0,9.863e-05,2]
[342584246,1731983432715,-500.0,9.863e-05,2]
[342584247,1731983432724,-500.0,9.863e-05,2]
[342584248,1731983432734,-500.0,9.863e-05,2]
[342584249,1731983432745,-500.0,9.863e-05,2]
[342584250,1731983432754,-500.0,9.863e-05,2]
[342584251,1731983432763,-500.0,9.863e-05,2]
[342584252,1731983432772,-500.0,9.863e-05,2]
[342584253,1731983432781,-500.0,9.863e-05,2]
[342584254,1731983432790,-500.0,9.863e-05,2]
[342584255,1731983432799,-500.0,9.863e-05,2]
[342584256,1731983432808,-500.0,9.863e-05,2]
[342584257,1731983432818,-500.0,9.863e-05,2]
[342584258,1731983432827,-500.0,9.863e-05,2]
[342584259,1731983432837,-500.0,9.863e-05,2]
[342584260,1731983432846,-590.49586359,9.863e-05,2]
[342584261,1731983432856,-500.0,9.863e-05,2]
[342584262,1731983432866,-500.0,9.863e-05,2]
[342584263,1731983432875,-500.0,9.863e-05,2]
[342584264,1731983432884,-500.0,9.863e-05,2]
[342584265,1731983432894,-500.0,9.863e-05,2]
[342584266,1731983432903,-500.0,9.863e-05,2]
[342584267,1731983432911,-500.0,9.863e-05,2]
[342584268,1731983432921,-500.0,9.863e-05,2]
[342584269,1731983432929,-500.0,9.863e-05,2]
[342584270,1731983432939,-500.0,9.863e-05,2]
[342584271,1731983432948,-500.0,9.863e-05,2]
[342584272,1731983432958,-500.0,9.863e-05,2]
[342584273,1731983432969,-500.0,9.863e-05,2]
[342584274,1731983432978,-500.0,9.863e-05,2]
[342584275,1731983432988,-500.0,9.863e-05,2]
[342584276,1731983432997,-500.0,9.863e-05,2]
[342584277,1731983433006,-500.0,9.863e-05,2]
[342584278,1731983433015,-1166.17,9.863e-05,2]
[342584279,1731983433024,-500.0,9.863e-05,2]
[342584280,1731983433034,-600.4235715,9.863e-05,2]
[342584281,1731983433043,-500.0,9.863e-05,2]
[342584282,1731983433052,-500.0,9.863e-05,2]
[342584283,1731983433062,-500.0,9.863e-05,2]
[342584284,1731983433071,-500.0,9.863e-05,2]
[342584285,1731983433080,-500.0,9.863e-05,2]
[342584286,1731983433090,-500.0,9.863e-05,2]
[342584287,1731983433099,-500.0,9.863e-05,2]
[342584288,1731983433109,-500.0,9.863e-05,2]
[342584289,1731983433117,-876.36,9.863e-05,2]
[342584290,1731983433127,-500.0,9.863e-05,2]
[342584291,1731983433136,-500.0,9.863e-05,2]
[342584292,1731983433145,-500.0,9.863e-05,2]
[342584293,1731983433155,-500.0,9.863e-05,2]
[342584294,1731983433164,-500.0,9.863e-05,2]
[342584295,1731983433174,-500.0,9.863e-05,2]
[342584296,1731983433187,-500.0,9.863e-05,2]
[342584297,1731983433196,-500.0,9.863e-05,2]
[342584298,1731983433205,-500.0,9.863e-05,2]
[342584299,1731983433216,-500.0,9.863e-05,2]
[342584300,1731983433226,-500.0,9.863e-05,2]
[342584301,1731983433236,-500.0,9.863e-05,2]
[342584302,1731983433245,-500.0,9.863e-05,2]
[342584303,1731983433256,-500.0,9.863e-05,2]
[342584304,1731983433266,-500.0,9.863e-05,2]
[342584305,1731983433275,-554.57450466,9.863e-05,2]
[342584306,1731983433285,-500.0,9.863e-05,2]
[342584307,1731983433294,-500.0,9.863e-05,2]
[342584308,1731983433303,-500.0,9.863e-05,2]
[342584309,1731983433313,-500.0,9.863e-05,2]
[342584310,1731983433322,-500.0,9.863e-05,2]
[342584311,1731983433331,-500.0,9.863e-05,2]
[342584312,1731983433341,-882.87,9.863e-05,2]
[342584313,1731983433350,-500.0,9.863e-05,2]
[342584314,1731983433360,-500.0,9.863e-05,2]
[342584315,1731983433369,-500.61256777,9.873e-05,2]
[342584316,1731983433379,-489.63,9.897e-05,2]
[342584317,1731983433388,-500.0,9.897e-05,2]
[342584318,1731983433398,-500.0,9.897e-05,2]
[342584319,1731983433407,-500.0,9.897e-05,2]
[342584320,1731983433417,-500.0,9.897e-05,2]
[342584321,1731983433426,-500.0,9.897e-05,2]
[342584322,1731983433435,-571.3,9.897e-05,2]
[342584323,1731983433445,-500.0,9.897e-05,2]
[342584324,1731983433454,-500.0,9.897e-05,2]
[342584325,1731983433464,-500.0,9.897e-05,2]
[342584326,1731983433475,-624.40822387,9.897e-05,2]
[342584327,1731983433485,-500.0,9.897e-05,2]
[342584328,1731983433495,-500.0,9.897e-05,2]
[342584329,1731983433504,-500.0,9.897e-05,2]
[342584330,1731983433513,-500.0,9.897e-05,2]
[342584331,1731983433523,-500.0,9.897e-05,2]
[342584332,1731983433532,-1166.17,9.897e-05,2]
[342584333,1731983433542,-500.0,9.897e-05,2]
[342584334,1731983433551,-500.0,9.897e-05,2]
[342584335,1731983433561,-500.0,9.897e-05,2]
[342584336,1731983433570,-500.0,9.897e-05,2]
[342584337,1731983433579,-500.0,9.897e-05,2]
[342584338,1731983433588,-500.0,9.897e-05,2]
[342584339,1731983433598,-272.7948322,9.897e-05,2]
[342584340,1731983433847,-500.0,9.897e-05,2]
[342584341,1731983433857,-876.36,9.897e-05,2]
[342584342,1731983433867,-500.0,9.897e-05,2]
[342584343,1731983433879,-500.0,9.897e-05,2]
[342584344,1731983433888,-500.0,9.897e-05,2]
[342584345,1731983433898,-500.0,9.897e-05,2]
[342584346,1731983433907,-500.0,9.897e-05,2]
[342584347,1731983433917,-500.0,9.897e-05,2]
[342584348,1731983433927,-500.0,9.897e-05,2]
[342584349,1731983433937,-500.0,9.897e-05,2]
[342584350,1731983433949,-500.0,9.897e-05,2]
[342584351,1731983433960,-500.0,9.897e-05,2]
[342584352,1731983433972,-500.0,9.897e-05,2]
[342584353,1731983433982,-500.0,9.897e-05,2]
[342584354,1731983433993,-505.61739009,9.897e-05,2]
[342584355,1731983434003,-500.0,9.897e-05,2]
[342584356,1731983434013,-500.0,9.897e-05,2]
[342584357,1731983434023,-639.40001554,9.897e-05,2]
[342584358,1731983434032,-500.0,9.897e-05,2]
[342584359,1731983434042,-500.0,9.897e-05,2]
[342584360,1731983434052,-500.0,9.897e-05,2]
[342584361,1731983434062,-882.87,9.897e-05,2]
[342584362,1731983434072,-500.0,9.897e-05,2]
[342584363,1731983434082,-500.0,9.897e-05,2]
[342584364,1731983434091,-500.0,9.897e-05,2]
[342584365,1731983434101,-500.0,9.898e-05,2]
[342584366,1731983434111,-594.23695978,9.898e-05,2]
[342584367,1731983434121,-500.0,9.898e-05,2]
[342584368,1731983434130,-502.45664858,9.898e-05,2]
[342584369,1731983434139,-500.0,9.898e-05,2]
[342584370,1731983434149,-500.0,9.898e-05,2]
[342584371,1731983434158,-500.0,9.898e-05,2]
[342584372,1731983434168,-500.0,9.898e-05,2]
[342584373,1731983434180,-500.0,9.898e-05,2]
[342584374,1731983434189,-500.0,9.898e-05,2]
[342584375,1731983434199,-502.99155576,9.898e-05,2]
[342584376,1731983434208,-500.0,9.898e-05,2]
[342584377,1731983434221,-571.40459596,9.898e-05,2]
[342584378,1731983434232,-504.17867639,9.898e-05,2]
[342584379,1731983434242,-501.72437786,9.898e-05,2]
[342584380,1731983434253,-500.0,9.898e-05,2]
[342584381,1731983434263,-500.0,9.898e-05,2]
[342584382,1731983434273,-500.0,9.898e-05,2]
[342584383,1731983434282,-500.0,9.898e-05,2]
[342584384,1731983434294,-500.0,9.898e-05,2]
[342584385,1731983434303,-500.0,9.898e-05,2]
[342584386,1731983434313,-500.0,9.898e-05,2]
[342584387,1731983434322,-500.0,9.898e-05,2]
[342584388,1731983434332,-503.8160759,9.898e-05,2]
[342584389,1731983434342,-500.0,9.898e-05,2]
[342584390,1731983434352,-500.0,9.898e-05,2]
[342584391,1731983434361,-500.0,9.898e-05,2]
[342584392,1731983434371,-500.0,9.898e-05,2]
[342584393,1731983434380,-500.0,9.898e-05,2]
[342584394,1731983434390,-503.65445639,9.898e-05,2]
[342584395,1731983434399,-500.0,9.898e-05,2]
[342584396,1731983434409,-500.0,9.898e-05,2]
[342584397,1731983434418,-500.0,9.898e-05,2]
[342584398,1731983434428,-500.0,9.898e-05,2]
[342584399,1731983434438,-500.0,9.898e-05,2]
[342584400,1731983434447,-500.0,9.898e-05,2]
[342584401,1731983434457,-500.0,9.898e-05,2]
[342584402,1731983434469,-508.75720728,9.898e-05,2]
[342584403,1731983434479,-500.0,9.898e-05,2]
[342584404,1731983434489,-500.0,9.898e-05,2]
[342584405,1731983434499,-500.0,9.898e-05,2]
[342584406,1731983434509,-500.0,9.898e-05,2]
[342584407,1731983434520,-500.0,9.898e-05,2]
[342584408,1731983434530,-640.57429043,9.898e-05,2]
[342584409,1731983434540,-500.0,9.898e-05,2]
[342584410,1731983434549,-500.0,9.898e-05,2]
[342584411,1731983434559,-500.0,9.898e-05,2]
[342584412,1731983434568,-500.0,9.898e-05,2]
[342584413,1731983434578,-500.0,9.898e-05,2]
[342584414,1731983434588,-532.58,9.898e-05,2]
[342584415,1731983434597,-500.0,9.898e-05,2]
[342584416,1731983434606,-500.0,9.898e-05,2]
[342584417,1731983434616,-500.0,9.898e-05,2]
[342584418,1731983434626,-500.0,9.898e-05,2]
[342584419,1731983434635,-500.0,9.898e-05,2]
[342584420,1731983434645,-500.0,9.898e-05,2]
[342584421,1731983434654,-500.0,9.898e-05,2]
[342584422,1731983434664,-500.0,9.898e-05,2]
[342584423,1731983434673,-500.0,9.898e-05,2]
[342584424,1731983434683,-500.0,9.898e-05,2]
[342584425,1731983434693,-500.0,9.898e-05,2]
[342584426,1731983434702,-500.0,9.898e-05,2]
[342584427,1731983434712,-500.0,9.898e-05,2]
[342584428,1731983434730,-502.08104499,9.898e-05,2]
[342584429,1731983434740,-505.13175578,9.898e-05,2]
[342584430,1731983434749,-500.0,9.898e-05,2]
[342584431,1731983434758,-502.84591193,9.898e-05,2]
[342584432,1731983434767,-500.0,9.898e-05,2]
[342584433,1731983434777,-500.0,9.898e-05,2]
[342584434,1731983434786,-500.0,9.898e-05,2]
[342584435,1731983434795,-500.0,9.898e-05,2]
[342584436,1731983434805,-500.0,9.898e-05,2]
[342584437,1731983434814,-500.0,9.898e-05,2]
[342584438,1731983434824,-500.0,9.898e-05,2]
[342584439,1731983434833,-500.0,9.898e-05,2]
[342584440,1731983434843,-500.0,9.898e-05,2]
[342584441,1731983434853,-500.0,9.898e-05,2]
[342584442,1731983434863,-500.0,9.898e-05,2]
[342584443,1731983434872,-500.0,9.898e-05,2]
[342584444,1731983434882,-500.0,9.898e-05,2]
[342584445,1731983434892,-500.0,9.898e-05,2]
[342584446,1731983434901,-500.0,9.898e-05,2]
[342584447,1731983434911,-500.0,9.898e-05,2]
[342584448,1731983434921,-500.0,9.898e-05,2]
[342584449,1731983434930,-500.0,9.898e-05,2]
[342584450,1731983434940,-500.0,9.898e-05,2]
[342584451,1731983434950,-500.0,9.898e-05,2]
[342584452,1731983434959,-500.0,9.898e-05,2]
[342584453,1731983434972,-500.0,9.898e-05,2]
[342584454,1731983434982,-500.0,9.898e-05,2]
[342584455,1731983434991,-500.0,9.898e-05,2]
[342584456,1731983435000,-500.0,9.898e-05,2]
[342584457,1731983435009,-500.0,9.898e-05,2]
[342584458,1731983435018,-503.10820822,9.898e-05,2]
[342584459,1731983435027,-501.28194139,9.898e-05,2]
[342584460,1731983435037,-500.0,9.898e-05,2]
[342584461,1731983435046,-605.63925083,9.898e-05,2]
[342584462,1731983435056,-500.0,9.898e-05,2]
[342584463,1731983435065,-500.0,9.898e-05,2]